bitfinex-derivatives/quotes_SOLF0:USTF0_20240911
["timestamp","ask_amount","ask_price","bid_price","bid_amount"]
[1726095874024,11.6,132.36,132.34,3.7775]
[1726095874716,3.7761,132.39,132.32,11.6]
[1726095875020,11.6,132.38,132.32,11.6]
[1726095875216,11.6,132.36,132.33,3.7775]
[1726095875522,11.6,132.36,132.3,12.9178]
[1726095876325,11.6,132.38,132.32,11.6]
[1726095876522,11.6,132.38,132.34,3.7773]
[1726095877223,11.6,132.38,132.35,3.7772]
[1726095877818,3.7758,132.4,132.33,11.6]
[1726095878021,11.6,132.4,132.35,11.6]
[1726095879828,11.6,132.4,132.37,3.7766]
[1726095880021,1.3367,132.43,132.35,11.6]
[1726095880223,15.3756,132.41,132.37,3.7766]
[1726095883821,15.3756,132.41,132.38,3.7763]
[1726095890636,15.376,132.4,132.37,3.7767]
[1726095892237,3.7763,132.39,132.36,3.7769]
[1726095892426,11.6,132.39,132.33,11.6]
[1726095892628,11.6,132.37,132.3,1.3178]
[1726095892936,15.3767,132.37,132.31,11.6]
[1726095893932,11.6,132.37,132.34,3.7775]
[1726095894438,3.7765,132.38,132.35,3.7772]
[1726095896927,3.7769,132.37,132.34,3.7775]
[1726095897130,11.6,132.39,132.33,11.34218632]
[1726095897430,11.6,132.39,132.34,6.99177579]
[1726095897636,1.4445,132.38,132.33,11.34218632]
[1726095897836,11.6,132.37,132.34,6.9918116]
[1726095898027,11.6,132.37,132.33,11.34218632]
[1726095898334,11.6,132.37,132.34,6.99178062]
[1726095898533,11.6,132.37,132.34,3.7774]
[1726095898932,15.3767,132.37,132.34,3.7774]
[1726095900438,11.6,132.37,132.34,3.7774]
[1726095900730,1.4445,132.38,132.36,3.777]
[1726095902934,1.3367,132.43,132.36,11.6]
[1726095903132,11.6,132.42,132.36,11.6]
[1726095903532,11.6,132.42,132.39,3.7759]
[1726095904135,11.6,132.42,132.4,3.7758]
[1726095912043,1.3367,132.43,132.41,3.7755]
[1726095913151,1.3608,132.44,132.42,3.7752]
[1726095913337,1.3608,132.44,132.4,11.6]
[1726095913745,1.3608,132.44,132.43,3.775]
[1726095914932,1.3608,132.44,132.39,18.19231229]
[1726095915138,1.3608,132.44,132.39,11.6]
[1726095915736,1.3608,132.44,132.39,18.19196387]
[1726095915947,5.1355,132.44,132.42,3.7752]
[1726095917937,1.3608,132.44,132.42,3.7752]
[1726095920542,3.7745,132.45,132.42,3.7752]
[1726095921952,3.85706194,132.47,132.41,11.6]
[1726095922450,7.63106194,132.47,132.44,3.7745]
[1726095922641,13.0427,132.5,132.44,11.6]
[1726095922844,1.4427,132.5,132.44,11.6]
[1726095923042,1.4427,132.5,132.45,11.6]
[1726095923650,5.2157,132.5,132.47,3.7737]
[1726095924045,1.4427,132.5,132.45,11.6]
[1726095924352,3.7733,132.49,132.44,11.6]
[1726095925148,3.7733,132.49,132.46,3.7741]
[1726095925350,16.8158,132.5,132.46,3.7741]
[1726095925549,16.8158,132.5,132.44,11.6]
[1726095925947,16.8158,132.5,132.47,3.7738]
[1726095926146,16.8158,132.5,132.44,11.6]
[1726095926147,11.6,132.52,132.46,11.6]
[1726095926650,11.6,132.52,132.48,3.7733]
[1726095927352,1.4215,132.53,132.48,11.6]
[1726095927556,1.4215,132.53,132.49,11.6]
[1726095927754,11.6,132.52,132.45,6.58755666]
[1726095928058,11.6,132.52,132.47,11.6]
[1726095928249,1.4215,132.53,132.48,11.6]
[1726095928956,1.4215,132.53,132.5,3.7728]
[1726095929650,16.7937,132.53,132.49,3.7732]
[1726095930449,13.0215,132.53,132.5,3.7729]
[1726095932360,13.0215,132.53,132.48,11.6]
[1726095933353,16.7937,132.53,132.49,3.7731]
[1726095934659,3.7724,132.52,132.49,3.7731]
[1726095936261,3.7729,132.51,132.46,11.6]
[1726095936464,11.6,132.52,132.46,11.6]
[1726095936666,15.3725,132.52,132.48,3.7733]
[1726095937172,3.7727,132.51,132.48,3.7733]
[1726095938674,11.6,132.51,132.43,1.3446]
[1726095938870,11.6,132.51,132.45,11.6]
[1726095939175,3.7732,132.5,132.46,3.774]
[1726095939364,11.6,132.51,132.45,11.6]
[1726095939566,11.6,132.51,132.43,1.3446]
[1726095939762,3.7736,132.48,132.44,15.3745]
[1726095939967,3.7736,132.48,132.44,11.6]
[1726095940578,3.7736,132.48,132.45,3.7744]
[1726095940873,3.7736,132.48,132.44,11.6]
[1726095941376,11.6,132.48,132.44,3.7745]
[1726095941978,15.3737,132.48,132.45,3.7744]
[1726095942372,3.7737,132.48,132.45,3.7744]
[1726095943073,3.7734,132.49,132.46,3.7741]
[1726095944971,1.3248,132.5,132.44,11.6]
[1726095945176,11.6,132.52,132.47,11.6]
[1726095945472,5.2061154,132.55,132.47,11.6]
[1726095945473,1.4407,132.54,132.47,11.6]
[1726095945670,11.6,132.53,132.47,11.6]
[1726095946677,3.7725,132.52,132.48,3.7733]
[1726095946867,11.6,132.53,132.48,3.7733]
[1726095947473,11.6,132.52,132.48,3.7733]
[1726095947770,3.7728,132.51,132.48,3.7733]
[1726095955177,3.7731,132.5,132.47,15.3738]
[1726095955888,3.7731,132.5,132.47,3.7738]
[1726095956183,11.6,132.5,132.46,3.7739]
[1726095957483,3.7734,132.49,132.46,3.7739]
[1726095958587,15.3731,132.5,132.47,3.7738]
[1726095959588,3.7733,132.49,132.46,3.774]
[1726095960093,11.6,132.5,132.44,11.6]
[1726095960682,11.6,132.5,132.42,2.7237]
[1726095960882,1.4407,132.54,132.42,2.7237]
[1726095960883,11.6,132.49,132.42,2.7237]
[1726095961185,3.774,132.47,132.43,3.7748]
[1726095961891,3.7741,132.46,132.43,3.7748]
[1726095962092,3.7741,132.46,132.42,6.4988]
[1726095962289,11.6,132.45,132.39,11.6]
[1726095962482,3.7749,132.44,132.38,11.6]
[1726095963284,3.7749,132.44,132.4,3.7758]
[1726095965398,11.6,132.45,132.38,11.6]
[1726095965399,3.775,132.43,132.39,3.776]
[1726095972204,3.775,132.43,132.4,3.7758]
[1726095974102,15.3748,132.44,132.41,3.7755]
[1726095974297,3.7748,132.44,132.41,3.7755]
[1726095976301,11.6,132.44,132.38,11.6]
[1726095976800,3.7753,132.42,132.39,3.7759]
[1726095979910,3.7753,132.42,132.36,11.6]
[1726095979911,11.6,132.42,132.36,11.6]
[1726095980306,3.75283513,132.41,132.36,11.6]
[1726095980506,3.75283513,132.41,132.37,3.7765]
[1726095981006,3.7757,132.41,132.38,3.7762]
[1726095985711,3.7759,132.4,132.37,3.7767]
[1726095986212,3.71195671,132.41,132.37,3.7767]
[1726095986409,7.48755671,132.41,132.38,3.7763]
[1726095986609,3.7756,132.41,132.36,11.6]
[1726095987809,3.7756,132.41,132.38,3.7764]
[1726095988813,15.3754,132.42,132.38,3.7764]
[1726095989016,15.3754,132.42,132.39,3.7761]
[1726095991017,11.6,132.42,132.36,11.6]
[1726095991219,11.6,132.42,132.37,11.6]
[1726095991610,11.6,132.42,132.39,3.7759]
[1726095994116,15.3753,132.42,132.39,3.7759]
[1726095998021,15.3753,132.42,132.36,11.6]
[1726095998022,11.6,132.42,132.36,11.6]
[1726095998217,11.6,132.42,132.4,3.7758]
[1726095998819,5.1278,132.43,132.4,3.7758]
[1726095999011,11.6,132.42,132.4,3.7758]
[1726095999422,15.3753,132.42,132.4,3.7758]
[1726096003525,15.3753,132.42,132.39,3.776]
[1726096007417,15.3757,132.41,132.38,3.7763]
[1726096007623,11.6,132.4,132.34,11.6]
[1726096008218,11.6,132.4,132.38,3.7762]
[1726096008527,19.16431181,132.41,132.38,3.7762]
[1726096014938,15.38871181,132.41,132.33,1.337]
[1726096015230,11.6,132.39,132.33,12.937]
[1726096015635,15.3761,132.39,132.36,3.7768]
[1726096016637,15.3764,132.38,132.35,3.7772]
[1726096019530,11.6,132.38,132.36,3.7769]
[1726096021037,15.3762,132.39,132.36,3.7769]
[1726096021245,3.76492143,132.4,132.35,11.6]
[1726096022536,3.7754,132.42,132.36,11.6]
[1726096023141,3.73338304,132.41,132.36,11.6]
[1726096023740,15.3756,132.41,132.36,11.6]
[1726096023944,15.3756,132.41,132.33,1.337]
[1726096023945,19.08906732,132.41,132.35,11.6]
[1726096024335,11.6,132.41,132.36,11.6]
[1726096024842,3.7753,132.42,132.36,11.6]
[1726096025145,3.7753,132.42,132.39,3.776]
[1726096025641,16.7277,132.43,132.4,3.7758]
[1726096026248,11.6,132.41,132.33,1.337]
[1726096026440,11.6,132.41,132.35,11.6]
[1726096027238,15.3757,132.41,132.38,3.7762]
[1726096028357,3.7758,132.4,132.38,3.7762]
[1726096029058,19.21727931,132.41,132.38,3.7762]
[1726096029754,15.3759,132.4,132.37,3.7765]
[1726096035760,3.7759,132.4,132.37,3.7765]
[1726096035966,15.44157931,132.41,132.37,11.6]
[1726096036264,11.6,132.41,132.37,11.6]
[1726096036449,16.7278,132.43,132.4,3.7758]
[1726096037566,3.7753,132.42,132.39,3.776]
[1726096039061,15.3753,132.42,132.39,3.776]
[1726096043561,5.1277,132.43,132.4,3.7758]
[1726096043766,3.775,132.43,132.4,3.7758]
[1726096044467,11.6,132.44,132.37,15.35585843]
[1726096045361,3.775,132.43,132.4,3.7756]
[1726096045563,11.6,132.44,132.37,15.35585843]
[1726096046161,15.3749,132.44,132.39,3.7761]
[1726096046465,15.3749,132.44,132.37,15.35585843]
[1726096047070,15.3749,132.44,132.41,3.7755]
[1726096048670,11.6,132.44,132.42,3.7752]
[1726096048857,14.3786,132.46,132.39,11.6]
[1726096049863,13.0096,132.46,132.41,11.6]
[1726096050468,1.3854,132.51,132.42,11.6]
[1726096050666,11.6,132.48,132.42,11.6]
[1726096050871,15.42229836,132.48,132.42,11.6]
[1726096051272,1.3973,132.5,132.43,11.6]
[1726096051464,11.6,132.49,132.43,11.6]
[1726096051664,12.9973,132.5,132.45,11.6]
[1726096052263,16.7705,132.5,132.46,3.774]
[1726096052667,16.7705,132.5,132.47,3.7737]
[1726096053574,5.1705,132.5,132.47,3.7737]
[1726096053776,16.7705,132.5,132.47,3.7737]
[1726096065685,12.9973,132.5,132.44,11.6]
[1726096065981,11.6,132.49,132.43,11.6]
[1726096066188,7.52502921,132.48,132.45,3.7742]
[1726096067480,3.7738,132.47,132.42,11.6]
[1726096067883,15.35122921,132.48,132.41,11.6]
[1726096068586,3.7743,132.46,132.43,3.7748]
[1726096081394,3.7745,132.45,132.42,3.7752]
[1726096081701,11.6,132.45,132.39,11.6]
[1726096081902,6.76684442,132.44,132.39,11.6]
[1726096082198,11.6,132.45,132.39,11.6]
[1726096082397,6.76684443,132.44,132.39,11.6]
[1726096082707,3.7748,132.44,132.41,3.7754]
[1726096083406,6.76712206,132.43,132.41,3.7754]
[1726096083699,3.7748,132.44,132.41,3.7754]
[1726096083896,6.76706261,132.43,132.41,3.7754]
[1726096084086,3.7748,132.44,132.41,3.7754]
[1726096084288,6.76681766,132.43,132.41,3.7754]
[1726096084497,3.7748,132.44,132.41,3.7754]
[1726096084698,6.76681766,132.43,132.41,3.7754]
[1726096084898,15.3745,132.45,132.42,3.7752]
[1726096085098,6.766548,132.44,132.42,3.7752]
[1726096085297,3.7745,132.45,132.42,3.7752]
[1726096085503,6.76654804,132.44,132.42,3.7752]
[1726096085805,6.76654804,132.43,132.42,3.7752]
[1726096086005,6.76654804,132.44,132.42,3.7752]
[1726096086205,6.76654804,132.43,132.42,3.7752]
[1726096086403,6.76654804,132.44,132.42,3.7752]
[1726096086607,6.76654804,132.43,132.42,3.7752]
[1726096086807,6.76654804,132.44,132.42,3.7752]
[1726096089003,10.54124804,132.44,132.42,3.7752]
[1726096089510,6.76654804,132.44,132.42,3.7752]
[1726096089699,11.6,132.46,132.42,3.7752]
[1726096090800,3.7745,132.45,132.42,3.7752]
[1726096092813,6.76667573,132.44,132.42,3.7752]
[1726096093308,6.76667573,132.44,132.41,11.6]
[1726096094210,3.7742,132.46,132.43,3.775]
[1726096096807,3.75122921,132.48,132.42,11.6]
[1726096097001,3.7737,132.48,132.45,3.7742]
[1726096097197,7.47094393,132.48,132.45,3.7742]
[1726096097707,3.69724393,132.48,132.43,11.6]
[1726096097913,11.6,132.49,132.43,11.6]
[1726096098119,3.74169767,132.48,132.45,3.7742]
[1726096099313,6.67029301,132.47,132.45,3.7742]
[1726096099504,6.67029301,132.47,132.43,11.6]
[1726096099713,6.67029301,132.46,132.43,11.6]
[1726096099913,6.67029301,132.45,132.43,11.6]
[1726096100111,3.7739,132.47,132.44,3.7745]
[1726096100418,6.67084855,132.46,132.44,3.7745]
[1726096100716,6.67084855,132.45,132.44,3.7745]
[1726096103821,19.11529767,132.48,132.44,3.7745]
[1726096104024,6.6708006,132.47,132.44,3.7745]
[1726096104218,6.6708006,132.46,132.45,3.7743]
[1726096105118,6.6708006,132.46,132.45,15.3743]
[1726096106729,5.1703,132.5,132.47,3.7737]
[1726096106925,6.67011016,132.49,132.47,11.6]
[1726096107133,11.6,132.52,132.47,11.6]
[1726096107427,10.44261412,132.51,132.47,11.6]
[1726096107727,6.66981412,132.5,132.47,11.6]
[1726096107926,6.66981412,132.49,132.47,11.6]
[1726096108128,6.66981412,132.48,132.47,15.3738]
[1726096110434,19.10052302,132.52,132.49,3.7732]
[1726096110935,6.64153414,132.51,132.49,3.7732]
[1726096111135,6.64153414,132.5,132.49,3.7732]
[1726096111726,6.64153414,132.5,132.48,3.7734]
[1726096111935,6.64153414,132.49,132.48,3.7734]
[1726096113124,6.64153414,132.49,132.45,2.7435]
[1726096113326,6.64153414,132.48,132.47,11.6]
[1726096114135,6.64153414,132.48,132.47,15.3738]
[1726096117240,3.7727,132.51,132.48,3.7735]
[1726096117642,6.64138285,132.5,132.48,3.7735]
[1726096118032,6.64138285,132.49,132.48,3.7735]
[1726096124434,6.64138285,132.49,132.47,3.7736]
[1726096124636,6.64138285,132.48,132.47,3.7736]
[1726096126451,6.64138285,132.48,132.46,3.774]
[1726096126641,3.7734,132.49,132.46,3.774]
[1726096126841,6.64158776,132.48,132.46,3.774]
[1726096127041,6.64158776,132.47,132.46,3.774]
[1726096127441,3.7732,132.5,132.46,3.774]
[1726096127950,6.64156524,132.47,132.46,3.774]
[1726096128549,13.28313048,132.47,132.46,3.774]
[1726096130948,6.64156524,132.47,132.46,3.774]
[1726096131548,13.28313285,132.47,132.46,3.774]
[1726096133354,2.7443,132.52,132.49,3.7731]
[1726096133650,2.7443,132.52,132.49,15.3731]
[1726096134851,6.5167,132.52,132.49,15.3731]
[1726096136753,6.5167,132.52,132.49,3.7731]
[1726096139358,1.4451,132.54,132.45,3.73670249]
[1726096139663,1.4451,132.54,132.52,11.6]
[1726096139864,3.67934249,132.56,132.52,11.6]
[1726096140060,11.6,132.58,132.52,11.6]
[1726096140450,3.7714,132.56,132.52,15.3723]
[1726096143567,3.771,132.57,132.53,3.772]
[1726096144767,3.7715,132.56,132.52,3.7724]
[1726096145069,15.3715,132.56,132.52,3.7724]
[1726096146068,3.7716,132.55,132.52,3.7724]
[1726096148164,3.7719,132.54,132.51,3.7726]
[1726096153262,16.6929,132.55,132.52,3.7724]
[1726096154369,3.7719,132.54,132.51,3.7726]
[1726096156570,16.6929,132.55,132.52,3.7723]
[1726096157974,3.7719,132.54,132.51,3.7726]
[1726096160871,3.7719,132.54,132.52,3.7724]
[1726096167977,16.6929,132.55,132.52,3.7724]
[1726096171184,3.7719,132.54,132.47,2.6987]
[1726096171375,12.9212,132.55,132.48,11.6]
[1726096171576,12.9212,132.55,132.49,11.6]
[1726096171880,16.6929,132.55,132.52,3.7723]
[1726096172884,5.0929,132.55,132.52,3.7723]
[1726096175485,11.6,132.53,132.47,1.3819]
[1726096175674,11.6,132.51,132.46,1.4402]
[1726096175988,3.76537763,132.5,132.44,11.6]
[1726096176187,7.53847763,132.5,132.44,11.6]
[1726096176482,11.6,132.51,132.44,11.6]
[1726096176877,15.33444275,132.51,132.47,3.7736]
[1726096177685,11.6,132.5,132.42,1.3156]
[1726096177890,12.9595,132.5,132.43,11.6]
[1726096178183,5.1326,132.5,132.47,3.7738]
[1726096180079,1.3595,132.5,132.45,11.6]
[1726096180391,11.6,132.52,132.46,11.6]
[1726096181183,11.6,132.52,132.47,11.6]
[1726096181390,11.6,132.52,132.46,11.6]
[1726096181590,3.7729,132.51,132.47,3.7736]
[1726096182889,3.7729,132.51,132.48,3.7735]
[1726096184178,3.7729,132.51,132.47,3.7737]
[1726096186988,15.3729,132.51,132.47,3.7737]
[1726096187583,3.7735,132.49,132.45,3.7741]
[1726096187787,11.6,132.5,132.45,3.7741]
[1726096187982,11.6,132.5,132.43,11.6]
[1726096188784,3.7734,132.49,132.46,3.7741]
[1726096196501,15.3732,132.5,132.43,11.6]
[1726096196996,1.3136,132.55,132.49,3.7731]
[1726096197199,11.6,132.53,132.49,3.7731]
[1726096197387,1.3136,132.55,132.49,11.6]
[1726096197588,3.7723,132.53,132.5,3.7729]
[1726096198199,15.3723,132.53,132.5,3.7729]
[1726096198908,3.7723,132.53,132.5,3.7729]
[1726096201195,15.3725,132.52,132.47,1.3252]
[1726096201891,3.7727,132.51,132.48,3.7734]
[1726096203297,15.3725,132.52,132.48,3.7734]
[1726096208004,3.7725,132.52,132.49,3.7731]
[1726096209204,3.7723,132.53,132.5,3.773]
[1726096210499,3.7719,132.54,132.51,3.7725]
[1726096210706,12.9136,132.55,132.49,11.6]
[1726096210904,3.7722,132.53,132.5,3.7728]
[1726096213506,3.7722,132.53,132.48,11.6]
[1726096214210,3.7722,132.53,132.5,3.7728]
[1726096217309,3.772,132.54,132.5,3.7728]
[1726096217617,1.3136,132.55,132.49,11.6]
[1726096218809,5.0853,132.55,132.49,11.6]
[1726096220211,5.0853,132.55,132.51,3.7724]
[1726096220912,5.0853,132.55,132.52,3.7723]
[1726096220913,16.6853,132.55,132.52,3.7723]
[1726096221305,1.3136,132.55,132.49,11.6]
[1726096221501,3.7714,132.56,132.53,3.7719]
[1726096221706,20.1699058,132.6,132.47,2.6833]
[1726096221905,3.7707,132.58,132.53,11.6]
[1726096222206,3.83328345,132.57,132.54,3.7717]
[1726096222609,3.83328345,132.57,132.55,3.7715]
[1726096222917,3.7707,132.58,132.55,3.7715]
[1726096223218,15.3705,132.59,132.55,3.7715]
[1726096223410,3.86497283,132.59,132.53,11.6]
[1726096224007,3.7706,132.59,132.55,15.3713]
[1726096224310,3.7706,132.59,132.55,11.6]
[1726096225104,7.59349783,132.59,132.55,15.3714]
[1726096225307,3.771,132.57,132.52,2.6739]
[1726096225511,3.82289783,132.59,132.53,15.3719]
[1726096225512,11.6,132.58,132.53,15.3719]
[1726096226115,7.47545778,132.57,132.53,15.3719]
[1726096226809,7.47545778,132.57,132.53,3.7719]
[1726096227015,3.7715,132.56,132.52,2.6739]
[1726096227214,11.6,132.56,132.5,11.6]
[1726096227812,3.7716,132.55,132.51,3.7725]
[1726096229818,3.7719,132.54,132.51,3.7725]
[1726096230515,3.7717,132.55,132.51,3.7725]
[1726096231611,3.7717,132.55,132.52,3.7724]
[1726096233721,3.7714,132.56,132.52,3.7724]
[1726096233921,15.30445778,132.57,132.52,11.6]
[1726096234223,3.7709,132.58,132.53,11.6]
[1726096234413,6.60272192,132.59,132.53,11.6]
[1726096235217,7.59982192,132.59,132.55,11.6]
[1726096235517,3.7706,132.59,132.55,11.6]
[1726096236223,1.3122,132.6,132.56,3.7711]
[1726096236833,5.0823,132.6,132.57,3.7709]
[1726096237820,5.0823,132.6,132.56,3.7711]
[1726096239029,3.7704,132.59,132.56,3.7711]
[1726096239820,1.3122,132.6,132.55,11.6]
[1726096240420,5.0825,132.6,132.56,3.771]
[1726096243428,3.7699,132.61,132.57,3.7709]
[1726096243826,1.3016,132.64,132.58,3.7707]
[1726096244129,3.7695,132.63,132.57,11.6]
[1726096244532,3.7696,132.62,132.59,3.7701]
[1726096244723,3.7696,132.62,132.57,11.6]
[1726096244924,3.7696,132.62,132.52,4.1279]
[1726096245124,11.6,132.62,132.57,11.6]
[1726096245325,11.6,132.62,132.52,4.1279]
[1726096245522,3.7702,132.6,132.56,15.3712]
[1726096245727,3.7702,132.6,132.56,11.6]
[1726096245931,11.6,132.6,132.55,11.6]
[1726096246131,15.3702,132.6,132.56,3.7712]
[1726096247428,3.7704,132.59,132.55,15.3714]
[1726096247739,3.7704,132.59,132.55,11.6]
[1726096248830,3.7704,132.59,132.56,3.7712]
[1726096252339,3.7707,132.58,132.55,3.7715]
[1726096252841,7.55898008,132.59,132.56,3.7712]
[1726096257852,3.7708,132.58,132.54,11.6]
[1726096258239,3.7708,132.58,132.56,3.7713]
[1726096259136,3.7708,132.58,132.55,3.7715]
[1726096260444,3.771,132.57,132.54,3.7717]
[1726096267239,15.3708,132.58,132.54,3.7717]
[1726096267744,3.78838008,132.59,132.53,11.6]
[1726096267745,15.38838008,132.59,132.53,11.6]
[1726096268047,11.6,132.59,132.53,11.6]
[1726096268250,15.36867394,132.59,132.53,11.6]
[1726096268844,19.13927394,132.59,132.56,3.7712]
[1726096270249,11.6,132.62,132.55,11.6]
[1726096270449,11.6,132.62,132.56,11.6]
[1726096271558,3.77,132.61,132.56,11.6]
[1726096272266,3.77,132.61,132.57,3.7708]
[1726096272464,3.77,132.61,132.56,11.6]
[1726096272761,11.6,132.63,132.59,3.7702]
[1726096273654,15.3695,132.63,132.59,3.7702]
[1726096274453,5.0707,132.64,132.59,11.6]
[1726096275751,5.0707,132.64,132.61,3.7698]
[1726096276655,1.3016,132.64,132.59,11.6]
[1726096277755,5.0706,132.64,132.61,3.7697]
[1726096279764,5.0706,132.64,132.6,3.7701]
[1726096280859,3.7688,132.65,132.61,11.6]
[1726096281859,3.7688,132.65,132.62,3.7695]
[1726096284670,107.57199671,132.66,132.63,3.7692]
[1726096285166,103.80349671,132.66,132.61,11.6]
[1726096285465,107.57199671,132.66,132.62,3.7694]
[1726096285666,103.80349671,132.66,132.63,11.6]
[1726096285867,103.80349671,132.66,132.63,15.3691]
[1726096286383,103.80349671,132.66,132.63,11.6]
[1726096287358,103.80349671,132.66,132.64,11.6]
[1726096287766,100.0,132.66,132.64,15.369]
[1726096290967,100.0,132.66,132.63,15.3692]
[1726096291573,100.0,132.66,132.62,3.7695]
[1726096292079,3.7689,132.65,132.61,15.3698]
[1726096292478,111.6,132.66,132.61,3.7698]
[1726096292680,112.9738,132.66,132.61,3.7698]
[1726096293182,3.7688,132.65,132.61,3.7698]
[1726096294672,3.769,132.64,132.6,15.3701]
[1726096296977,112.9738,132.66,132.6,11.6]
[1726096297574,3.7692,132.64,132.6,15.3701]
[1726096300983,3.7693,132.63,132.6,15.3701]
[1726096302282,3.769,132.64,132.6,15.3701]
[1726096306482,11.6,132.64,132.53,1.314]
[1726096306683,11.6,132.63,132.54,1.3296]
[1726096306895,11.6,132.63,132.56,11.6]
[1726096307192,11.6,132.62,132.56,11.6]
[1726096307393,7.62104773,132.61,132.57,3.7709]
[1726096307888,3.85104773,132.61,132.57,3.7709]
[1726096308283,3.7701,132.6,132.56,15.3711]
[1726096309796,3.7705,132.59,132.55,3.7714]
[1726096311295,3.7707,132.58,132.55,3.7714]
[1726096316790,3.7705,132.59,132.55,3.7714]
[1726096319702,11.6,132.59,132.54,3.7717]
[1726096320514,11.6,132.58,132.53,3.772]
[1726096321307,15.3714,132.56,132.52,3.7722]
[1726096321709,15.3714,132.56,132.53,3.7719]
[1726096322006,15.3714,132.56,132.48,1.3734]
[1726096322209,15.3714,132.56,132.51,11.6]
[1726096322399,15.3714,132.56,132.52,3.7721]
[1726096323795,15.3714,132.56,132.53,3.772]
[1726096324395,11.6,132.56,132.52,3.7723]
[1726096324609,3.7716,132.55,132.52,3.7723]
[1726096325609,15.3714,132.56,132.52,3.7723]
[1726096326211,15.3714,132.56,132.53,3.7721]
[1726096326509,3.7711,132.57,132.53,3.7721]
[1726096328615,15.3713,132.56,132.52,3.7723]
[1726096331309,15.3713,132.56,132.48,1.3734]
[1726096331310,3.7726,132.52,132.48,3.7734]
[1726096331506,11.6,132.5,132.44,11.6]
[1726096332410,11.6,132.48,132.42,14.4614]
[1726096332607,11.6,132.47,132.42,2.8614]
[1726096332803,11.6,132.47,132.42,1.4417]
[1726096333815,3.7743,132.46,132.42,5.2169]
[1726096335514,3.7747,132.44,132.4,3.7758]
[1726096335720,15.3165953,132.44,132.38,13.0197]
[1726096336020,11.6,132.43,132.38,1.4197]
[1726096336218,15.375,132.43,132.39,3.7759]
[1726096337114,15.375,132.43,132.4,3.7758]
[1726096337713,3.7753,132.42,132.39,3.776]
[1726096337910,11.6,132.41,132.38,1.4197]
[1726096338313,11.6,132.4,132.38,3.7762]
[1726096346422,3.78436382,132.42,132.39,3.7761]
[1726096346627,11.6,132.42,132.39,3.7761]
[1726096346931,11.6,132.41,132.39,3.7761]
[1726096348928,7.57411702,132.42,132.39,3.7761]
[1726096348929,3.79881702,132.42,132.39,3.7761]
[1726096349128,15.35538687,132.42,132.33,2.7379]
[1726096349327,15.35538687,132.42,132.34,11.6]
[1726096349328,11.6,132.4,132.34,11.6]
[1726096349828,11.6,132.4,132.38,3.7763]
[1726096351939,11.6,132.4,132.39,3.7761]
[1726096357356,11.6,132.41,132.4,3.7758]
[1726096360041,11.6,132.41,132.35,11.6]
[1726096360240,11.6,132.41,132.39,3.776]
[1726096365051,11.6,132.41,132.4,3.7758]
[1726096377964,11.6,132.41,132.39,3.7759]
[1726096394877,11.6,132.4,132.38,3.7762]
[1726096395969,11.6,132.4,132.33,14.3379]
[1726096395970,15.3758,132.4,132.37,3.7765]